Cogmind - Beta 14 @@@ ROGUE MODE // 2024.08.24 @ 17:33:37 // AFD2020/Player2 Player: Daffa0360 Result: Destroyed by D-53 Grenadier with Mini Grenade Launcher Performance ------------- Evolutions (0) 0 Regions Visited (4) 800 Robots Destroyed (4) 20 Value Destroyed (83) 83 Prototype IDs (25) 500 Alien Tech Used (0) 0 Bonus (301) 301 TOTAL SCORE: 1704 Bonus ------- Follower Combat Kills 46 Aligned with FarCom 300 Friendly Fire -45 Cogmind --------- Core Integrity 0/250 Matter 295/300 Energy 100/100 System Corruption 0% Temperature Cool (0) Movement Walking (120) Location -9/Mines Parts ------- > --- POWER (1) -------- (None) > --- PROPULSION (2) --- Aluminum Leg Aluminum Leg > --- UTILITY (2) ------ Small Storage Unit > --- WEAPON (2) ------- AWS/Thermal > --- INVENTORY (8) ---- Aluminum Leg Mining Laser Peak State ------------ > --- POWER ------------ Light Ion Engine > --- PROPULSION ------- Aluminum Leg Aluminum Leg > --- UTILITY ---------- Small Storage Unit > --- WEAPON ----------- AWS/Thermal > --- INVENTORY -------- Aluminum Leg Mining Laser [Rating: 20] Favorites ----------- Power Light Ion Engine Engine Light Ion Engine Propulsion Aluminum Leg Leg Aluminum Leg Utility Small Storage Unit Storage Small Storage Unit Weapon Assault Rifle Energy Gun Small Laser Ballistic Gun Assault Rifle Build | -11 -10 -10 -10 -9 ------- Run | Yrd Mat Min Exi Min Slots Evolved . | . . . . . Power . | . . . . . Propulsion . | . . . . . Utility . | . . . . . Weapon . | . . . . . Parts Attached 2 | . . 1 1 . Power . | . . . . . Engine . | . . . . . Core . | . . . . . Reactor . | . . . . . Propulsion 1 | . . 1 . . Treads . | . . . . . Leg 1 | . . 1 . . Wheel . | . . . . . Hover . | . . . . . Flight . | . . . . . Utility . | . . . . . Device . | . . . . . Storage . | . . . . . Processor . | . . . . . Hackware . | . . . . . Protection . | . . . . . Artifact . | . . . . . Weapon 1 | . . . 1 . Energy Gun 1 | . . . 1 . Energy Cannon . | . . . . . Ballistic Gun . | . . . . . Ballistic Cannon . | . . . . . Launcher . | . . . . . Special Weapon . | . . . . . Impact Weapon . | . . . . . Slashing Weapon . | . . . . . Piercing Weapon . | . . . . . Special Melee Weapon . | . . . . . Unidentified Prototypes . | . . . . . Parts Lost 1 | . . . . 1 Power 1 | . . . . 1 Propulsion . | . . . . . Utility . | . . . . . Weapon . | . . . . . Highest Loss Streak 1 | . . . . 1 To Critical Strikes . | . . . . . Average Slot Usage (%) 82 | . 85 85 76 64 Engine 13 | . 14 14 14 7 Leg 28 | . 28 28 28 28 Storage 14 | . 14 14 14 14 Energy Gun 14 | . 14 14 14 14 Ballistic Gun 11 | . 14 14 5 . Peak Build Rating 20 | 6 6 6 20 20 Average Rating 8 | 6 6 6 14 19 On Entrance 8 | 6 6 6 6 20 Naked Turns . | . . . . . Heaviest Build 16 | 11 11 11 16 16 Greatest Support 20 | 20 20 20 20 20 Greatest Overweight (x) . | . . . . . Average Overweight (x) . | . . . . . Largest Inventory Capacity 8 | 8 8 8 8 8 Average Capacity 8 | 8 8 8 8 8 Most Carried 6 | 6 6 2 4 2 Average Carried 1 | 6 . 1 2 2 Final Capacity 8 | 8 8 8 8 8 Final Carried 6 | 6 1 2 2 2 Class Distribution -------------------- 100% | Mutant Dominant Class ---------------- Mutant | -10/Materials Mutant | -10/Mines Mutant | -10/Exiles Mutant | -9/Mines Resources | -11 -10 -10 -10 -9 ----------- Run | Yrd Mat Min Exi Min Matter Collected 273 | 200 24 49 . . Remotely . | . . . . . Salvage Created 131 | . 46 47 . 38 Parts 7 | . 6 1 . . Haulers Intercepted . | . . . . . Recyclers Shooed . | . . . . . Parts Field Recycled . | . . . . . Retrieved Matter . | . . . . . Parts Self-Destructed . | . . . . . Prevented . | . . . . . Kills | -11 -10 -10 -10 -9 ------- Run | Yrd Mat Min Exi Min Combat Hostiles Destroyed 5 | . 2 1 . 2 Guns 5 | . 2 1 . 2 Classes Destroyed 4 | . 2 1 . 1 Watcher 1 | . 1 . . . Swarmer 2 | . 2 . . . Grunt 1 | . . 1 . . Assembled 2 | . . . . 2 Best Kill Streak 2 | . 2 1 . 2 Combat Bots Only 2 | . 2 1 . 2 Max Kills in Single Turn 1 | . 1 1 . 1 Gunslinging . | . . . . . Exploded . | . . . . . Melee . | . . . . . Uniques/NPCs Destroyed . | . . . . . Combat | -11 -10 -10 -10 -9 -------- Run | Yrd Mat Min Exi Min Hostile Shots Fired 35 | . 24 9 . 2 Missed 6 | . 6 . . . Damage Taken 470 | . 149 161 . 160 Core 160 | . 38 53 . 69 Absorbed by Shields . | . . . . . Core Remaining (%) 100 | 100 . . . . Volleys Fired 21 | . 14 7 . . Largest 2 | . 2 2 . . Hottest 60 | . 60 60 . . Shots Fired 42 | . 18 14 . 10 Gun 42 | . 18 14 . 10 Cannon . | . . . . . Launcher . | . . . . . Special . | . . . . . Kinetic 21 | . 14 7 . . Thermal 21 | . 4 7 . 10 Explosive . | . . . . . Electromagnetic . | . . . . . Robot Hit Streak 12 | . 4 4 . 12 Robot Miss Streak 4 | . 3 4 . . Penetration Max . | . . . . . Secondary Targets . | . . . . . Autonomous 10 | . . . . 10 Shots Hit Robots 26 | . 9 7 . 10 Core Hits 9 | . 3 3 . 3 Critical Kills . | . . . . . Critical Parts Destroyed . | . . . . . Critical Strikes . | . . . . . Melee Attacks . | . . . . . Impact . | . . . . . Slashing . | . . . . . Piercing . | . . . . . Sneak Attacks . | . . . . . Combat Hostiles . | . . . . . Follow-up Attacks . | . . . . . Damage Inflicted 501 | . 147 86 . 268 Guns 501 | . 147 86 . 268 Cannons . | . . . . . Explosions . | . . . . . Melee . | . . . . . Ramming . | . . . . . Kinetic 165 | . 112 53 . . Thermal 336 | . 35 33 . 268 Explosive . | . . . . . Electromagnetic . | . . . . . Impact . | . . . . . Slashing . | . . . . . Piercing . | . . . . . Highest Corruption . | . . . . . Average Corruption . | . . . . . Corruption Purged . | . . . . . Corruption Blocked . | . . . . . Overload Shots . | . . . . . Overflow Damage . | . . . . . Projectiles . | . . . . . Explosions . | . . . . . Melee . | . . . . . Knockbacks . | . . . . . Impact . | . . . . . Kinetic . | . . . . . Secondary . | . . . . . Self-Inflicted Damage . | . . . . . Shots . | . . . . . Rammed . | . . . . . Targets Rammed . | . . . . . Kicked . | . . . . . Crushed . | . . . . . Highest Temperature 81 | . . 81 . . Average Temperature 46 | . . 46 . . Received Heat Transfer 81 | . . 81 . . Siege Activations . | . . . . . Robots Corrupted . | . . . . . Combat Hostiles . | . . . . . Parts Fried . | . . . . . Impact Corruptions . | . . . . . Robots Melted . | . . . . . Combat Hostiles . | . . . . . Parts Melted . | . . . . . Heat Transferred 483 | . 75 75 . 333 Parts Sabotaged . | . . . . . Parts Stolen . | . . . . . Parts Stripped . | . . . . . Power Chain Reactions . | . . . . . Alert | -11 -10 -10 -10 -9 ------- Run | Yrd Mat Min Exi Min Peak Influence 209 | . 209 143 . . Initial 81 | . . 81 . . Average 81 | . 48 104 . . Maximum Alert Level 1 | . 1 . . . Low Security (%) 98 | 100 96 100 . 100 Level 1 1 | . 3 . . . Level 2 . | . . . . . Level 3 . | . . . . . Level 4 . | . . . . . Level 5 . | . . . . . High Security . | . . . . . Max Security . | . . . . . Squads Dispatched . | . . . . . Investigation . | . . . . . Extermination . | . . . . . Reinforcement . | . . . . . Assault . | . . . . . Garrison . | . . . . . Intercept . | . . . . . Searches Triggered . | . . . . . Construction Impeded . | . . . . . Haulers Reinforced . | . . . . . Active Scanning Responses . | . . . . . Cargo Convoy Interrupts . | . . . . . Stealth | -11 -10 -10 -10 -9 --------- Run | Yrd Mat Min Exi Min Distress Signals 1 | . 1 . . . Communications Jammed . | . . . . . Distress Signals . | . . . . . Times Spotted 32 | . 9 2 . 21 Peak Tracking Total 18 | . 5 2 . 18 Tactical Retreats . | . . . . . Traps | -11 -10 -10 -10 -9 ------- Run | Yrd Mat Min Exi Min Traps Triggered . | . . . . . Indirectly . | . . . . . Trap Hack Attempts . | . . . . . Triggered . | . . . . . Disarmed . | . . . . . Reprogrammed . | . . . . . Reused . | . . . . . Traps Extracted . | . . . . . Installed . | . . . . . Triggered . | . . . . . Machines | -11 -10 -10 -10 -9 ---------- Run | Yrd Mat Min Exi Min Machines Disabled 1 | . 1 . . . Max in Single Turn 1 | . 1 . . . Machines Repaired . | . . . . . Machines Dismantled . | . . . . . Machines Sabotaged . | . . . . . Overloaded Fab Kills . | . . . . . Hacking | -11 -10 -10 -10 -9 --------- Run | Yrd Mat Min Exi Min Machines Accessed 3 | . 2 . 1 . Terminals 2 | . 2 . . . Fabricators . | . . . . . Repair Stations . | . . . . . Recycling Units . | . . . . . Scanalyzers . | . . . . . Garrison Access . | . . . . . Total Hacks 8 | . 7 . 1 . Successful 5 | . 4 . 1 . Failed 3 | . 3 . . . Catastrophic . | . . . . . Database Lockouts . | . . . . . Manual 1 | . . . 1 . Terminals 7 | . 7 . . . Fabricators . | . . . . . Repair Stations . | . . . . . Recycling Units . | . . . . . Scanalyzers . | . . . . . Garrison Access . | . . . . . Terminal Hacks 5 | . 4 . 1 . Robot Analysis 1 | . 1 . . . Prototype ID Bank 1 | . 1 . . . Branch Access Points 1 | . 1 . . . Locate Traps 1 | . 1 . . . Derelict Proto ID Bank 1 | . . . 1 . Fabricator Hacks . | . . . . . Repair Station Hacks . | . . . . . Recycling Unit Hacks . | . . . . . Scanalyzer . | . . . . . Garrison Access Hacks . | . . . . . Unauthorized Hacks . | . . . . . Terminals . | . . . . . Fabricators . | . . . . . Repair Stations . | . . . . . Recycling Units . | . . . . . Scanalyzers . | . . . . . Garrison Access . | . . . . . Data Cores Recovered . | . . . . . Used . | . . . . . Hacking Detections 1 | . 1 . . . Full Trace Events . | . . . . . Feedback Events . | . . . . . Feedback Blocked . | . . . . . Robot Schematics Acquired . | . . . . . Robots Built . | . . . . . Authchips . | . . . . . Time . | . . . . . Total Robot Build Rating . | . . . . . Part Schematics Acquired . | . . . . . Parts Built . | . . . . . Authchips . | . . . . . Time . | . . . . . Total Part Build Rating . | . . . . . Parts Repaired . | . . . . . Time . | . . . . . Parts Recycled . | . . . . . Recycled Matter . | . . . . . Retrieved Matter . | . . . . . Retrieved Components . | . . . . . Parts Scanalyzed . | . . . . . Part Schematics Acquired . | . . . . . Parts Damaged . | . . . . . Bothacking | -11 -10 -10 -10 -9 ------------ Run | Yrd Mat Min Exi Min Used RIF Installer . | . . . . . Robots Hacked . | . . . . . Non-combat . | . . . . . Combat . | . . . . . Robot Hacks Applied . | . . . . . Relay Couplers Released . | . . . . . Fabnet Peak Effective % . | . . . . . Robots Rewired . | . . . . . Allies Hacked . | . . . . . Hacks Repelled . | . . . . . Allies | -11 -10 -10 -10 -9 -------- Run | Yrd Mat Min Exi Min Total Allies 1 | . 1 . . . Largest Group 1 | . 1 1 1 1 Highest-Rated Group 58 | . 57 58 58 58 Highest-Rated Ally 58 | . 57 58 58 58 Total Orders . | . . . . . Ally Attacks 17 | . 7 7 . 3 Total Damage 250 | . 173 77 . . Kills 7 | . 6 1 . . Allies Corrupted . | . . . . . Allies Melted . | . . . . . Intel | -11 -10 -10 -10 -9 ------- Run | Yrd Mat Min Exi Min Robot Analysis Total 1 | . 1 . . . Derelict Logs Recovered 2 | . . 2 . . Drone Launches . | . . . . . Drone Recoveries . | . . . . . Exploration | -11 -10 -10 -10 -9 ------------- Run | Yrd Mat Min Exi Min Turns Passed 1249 | 8 316 537 370 18 Spaces Moved 815 | 7 174 390 233 11 Core . | . . . . . Treads . | . . . . . Legs 815 | 7 174 390 233 11 Wheels . | . . . . . Hover . | . . . . . Flight . | . . . . . Fastest Speed 120 | 120 120 120 120 120 Average Speed 120 | 120 120 120 120 120 Slowest Speed 120 | 120 120 120 120 120 Overloaded Moves . | . . . . . Propulsion Burnouts . | . . . . . Robots Hopped . | . . . . . Cave-ins Triggered . | . . . . . Exploration Rate (%) 40 | 2 41 93 60 5 Regions Visited 4 Branch Regions 3 Pre-discovered Areas 1 | . . 1 . . Known Exits Taken 1 | . 1 . . . Unknown Exits Taken 3 | 1 . 1 1 . Scrap Searched 1 | . . 1 . . Spaces Dug . | . . . . . Terrain Destroyed 1 | . . . . 1 Melee . | . . . . . Projectile 1 | . . . . 1 AOE . | . . . . . Terrain Rammed . | . . . . . Walls Destroyed . | . . . . . Machines Disabled . | . . . . . Actions | -11 -10 -10 -10 -9 --------- Run | Yrd Mat Min Exi Min Total 1057 | 6 266 445 324 16 Wait 210 | . 72 45 88 5 Move 811 | 6 173 389 232 11 Hop . | . . . . . Pick Up 4 | . 1 2 1 . Fast Attach . | . . . . . Attach 1 | . . . 1 . Detach . | . . . . . Swap 1 | . . 1 . . Drop 9 | . 6 1 2 . Fire 21 | . 14 7 . . Melee . | . . . . . Ram . | . . . . . Kick . | . . . . . Crush . | . . . . . Escape Stasis . | . . . . . Rewire . | . . . . . Trap . | . . . . . Miscellaneous . | . . . . . Route ------- -11/Scrapyard -10/Materials (discovered 2 exits: *Min x2) -10/Mines (discovered 2 exits: [*Mat] / *Exi) -10/Exiles -9/Mines History --------- Turn | Location | Event 1 | -11/Scrapyard | Discovered new exit (range 3) 9 | -11/Scrapyard | Entered Materials 118 | -10/Materials | Identified exit to Mines 307 | -10/Materials | Build established: Mutant 325 | -10/Materials | Entered Mines 389 | -10/Mines | Learned location of Zion (-6) 551 | -10/Mines | Learned Materials terminal intel 564 | -10/Mines | Discovered new exit (range 14) 844 | -10/Mines | Deemed a non-threat by the Exiles lab entrance 844 | -10/Mines | Discovered new exit (range 5) 862 | -10/Mines | Entered Exiles 891 | -10/Exiles | Met 8R-AWN 914 | -10/Exiles | Met EX-HEX 946 | -10/Exiles | Met EX-BIN 961 | -10/Exiles | Aligned with FarCom system 962 | -10/Exiles | Given EX-Vault access code 997 | -10/Exiles | Opened EX-Vault 1006 | -10/Exiles | Found AWS/Thermal 1036 | -10/Exiles | Warned to stay clear of 0b10 Research branches 1069 | -10/Exiles | Met EX-DEC 1214 | -10/Exiles | Discovered new exit (range 10) 1232 | -10/Exiles | Left Exiles lab with AWS/Thermal 1232 | -10/Exiles | Entered Mines 1233 | -9/Mines | Assembled infested the area 1234 | -9/Mines | Core integrity fell below 50% 1238 | -9/Mines | Assisted by a Guerilla fighting off Assembled 1245 | -9/Mines | Core integrity fell below 20% 1250 | -9/Mines | Destroyed by D-53 Grenadier with Mini Grenade Launcher Last Messages --------------- 01244_ D-53 Grenadier unfolds itself. 01244_ Lgt. Ion Engine destroyed. 01246_ HV Slug penetrates as-70568. 01246_ as-70568 suffers critical hit (Destroy). 01246_ as-70568 destroyed. 01246_ as-79405 destroyed. 01246_ 94-XB6(h) destroyed. 01246_ as-40411 destroyed. 01246_ as-32018 destroyed. 01246_ as-62930 destroyed. 01246_ as-62720 destroyed. 01246_ as-87575 destroyed. 01246_ as-76740 destroyed. 01246_ as-36802 destroyed. 01246_ as-44468 destroyed. 01247_ Destroyed Shock Absorption System. 01249_ as-35307 destroyed. 01249_ as-84389 destroyed. 01249_ as-03821 destroyed. 01250_ as-68880 destroyed. Map ----- +----------------------------------------------------+ | | | | | | | | | | | | | | | | | | | | | | | | | | | | | | | | | ????????????????????????????????????????????????? | | ????????????????????????????????????????????????? | | ????????????????????????????????????????????????? | | ????????????????????????????????????????????????? | | ????????????????????????????????????????????????? | | ????????????????????????????????????????????????? | | ???????????????????????#####????????????????????? | | ??????????????????????## ##???????????????????? | | ????????????????????### #???????????????????? | | ????????????????????# @ #???????????????????? | | ????????????????????# ########????????????? | | ???????????????????# d %d #???????????? | | ???????????????????# * ##### #??????????? | | ???????????????????# @ #??????????????????? | | ???????????????????## #????????????s?????? | | ???????????????????? ##??????????????????? | | ???????????????????## ???????????????????? | | ????????????????????## ???????????????????? | | ?????????????????????# a% ??????????????????? | | ?????????????????????# ??????????????????? | | ?????????????????????# #??????????????????? | | ????????????????????? ##??????????????????? | | ????????????????????? < ##???????????????????? | | ?????????????????????#### #?????????????????????? | | ????????????????????????? #?????????????????????? | | ????????????????????????? ?????????????????????? | | ?????????????????????????##?????????????????????? | | ????????????????????????????????????????????????? | | ????????????????????????????????????????????????? | | ????????????????????????????????????????????????? | | ????????????????????????????????????????????????? | | ????????????????????????????????????????????????? | | ????????????????????????????????????????????????? | | ????????????????????????????????????????????????? | +----------------------------------------------------+ Best States ------------- Heat Dissipation 25 Energy Generation 10 Energy Capacity 125 Matter Stores 300 Matter Capacity 300 Sight Range 16 Terrain Scan Density 10 Evasion (%) 55 Item Schematics ----------------- None Robot Schematics ------------------ None Fabricated ------------ Nothing Alien Tech Used ----------------- None Achievements -------------- None Challenges ------------ None Player 2 | -11 -10 -10 -10 -9 ---------- Run | Yrd Mat Min Exi Min Slots Evolved . | . . . . . Power . | . . . . . Propulsion . | . . . . . Utility . | . . . . . Weapon . | . . . . . Parts Attached 9 | . 8 1 . . Parts Lost . | . . . . . Damage Taken 405 | . 67 53 . 285 Core 101 | . . 22 . 79 Player 2/Cogmind (%) 38 | . . 29 . 53 Absorbed by Shields . | . . . . . Damage Inflicted 250 | . 173 77 . . Player 2/Cogmind (%) 33 | . 54 47 . . Combat Hostiles Destroyed 4 | . 3 1 . . Player 2/Cogmind (%) 44 | . 60 50 . . Game ------ Seed AmuletVariableAutopenetrator Manual? 0 Play Time 00:07:08 Cumulative 63.9 hours Start 2024.08.24 @ 17:26:56 End 2024.08.24 @ 17:33:37 Sessions 1 Manual Loads 0 Difficulty Rogue Special Mode AFD2020/Player2 Game No. 105 Rogue 101 Adventurer 4 Explorer 0 Win Type - Total 0 Types 0/0/0/0/0/0/0/0/0 Lore% 29 Gallery% 42 Achievement% 34 Wizard Run 0 Options --------- Layout 2 ASCII 0 Keyboard 0 Movement Mouse Keybinds 0 Fullscreen 2 Font 24/Smallcaps Map View 50x44 Zoom Use 0% Tactical HUD 1 Map Filters NONE Filters NONE Steam 1 RUN: 8b273eff-8bf2-4c8d-8f05-11b2731a0e89